fUST/lending_fUST_20240904
["ID","MTS","AMOUNT","RATE_DAILY","PERIOD"]
[337100496,1725426662039,-500.0,0.00028219,2]
[337100497,1725426662049,-500.0,0.00028219,2]
[337100498,1725426662060,-500.0,0.00028219,2]
[337100499,1725426662070,-500.0,0.00028219,2]
[337100500,1725426662079,-500.0,0.00028219,2]
[337100501,1725426662091,-500.0,0.00028219,2]
[337100502,1725426662100,-500.0,0.00028219,2]
[337100503,1725426662199,-500.0,0.00028219,2]
[337100504,1725426662209,-500.0,0.00028219,2]
[337100505,1725426662219,-919.57,0.00028219,2]
[337100506,1725426662228,-2383.881999,0.00028219,7]
[337100507,1725426662238,-2383.881999,0.00028219,7]
[337100508,1725426662248,-151.0,0.00028219,2]
[337100509,1725426662260,-5333.74055398,0.00028443,2]
[337100510,1725426662270,-265.01912019,0.00028493,2]
[337100511,1725426662281,-500.0,0.00028493,2]
[337100512,1725426662294,-273.63644061,0.00028493,2]
[337100513,1725426662304,-417.70678475,0.00028493,2]
[337100514,1725426662314,-500.0,0.00028493,2]
[337100515,1725426662323,-500.0,0.00028493,2]
[337100516,1725426662334,-500.0,0.00028493,2]
[337100517,1725426662344,-500.0,0.00028493,2]
[337100518,1725426662353,-500.0,0.00028493,2]
[337100519,1725426662363,-500.0,0.00028493,2]
[337100520,1725426662373,-500.0,0.00028493,2]
[337100521,1725426662382,-500.0,0.00028493,2]
[337100522,1725426662392,-500.0,0.00028493,2]
[337100523,1725426662402,-500.0,0.00028493,2]
[337100524,1725426662411,-500.0,0.00028493,2]
[337100525,1725426662422,-500.0,0.00028493,2]
[337100526,1725426662432,-500.0,0.00028493,2]
[337100527,1725426662442,-327.68272861,0.00028493,2]
[337100528,1725426662453,-500.0,0.00028493,2]
[337100529,1725426662464,-500.0,0.00028493,2]
[337100530,1725426662474,-152.11674336,0.00028493,2]
[337100531,1725426662485,-500.0,0.00028493,2]
[337100532,1725426662495,-1302.87,0.00028493,2]
[337100533,1725426662505,-1156.02,0.00028493,2]
[337100534,1725426662515,-760.8,0.00028493,2]
[337100535,1725426662524,-500.0,0.00028493,2]
[337100536,1725426662535,-2082.53,0.00028493,2]
[337100537,1725426662544,-500.0,0.00028493,2]
[337100538,1725426662556,-10473.4,0.00028493,2]
[337100539,1725426662569,-500.0,0.00028493,2]
[337100540,1725426662578,-500.0,0.00028493,2]
[337100541,1725426662589,-885.72,0.00028493,2]
[337100542,1725426662598,-500.0,0.00028493,2]
[337100543,1725426662608,-500.0,0.00028493,2]
[337100544,1725426662617,-871.3,0.00028493,2]
[337100545,1725426662626,-2887.27,0.00028493,2]
[337100546,1725426662635,-500.0,0.00028493,2]
[337100547,1725426662646,-1285.92,0.00028493,2]
[337100548,1725426662656,-500.0,0.00028493,2]
[337100549,1725426662669,-985.59,0.00028493,2]
[337100550,1725426662680,-500.0,0.00028493,2]
[337100551,1725426662691,-500.0,0.00028493,2]
[337100552,1725426662701,-4135.59,0.00028493,2]
[337100553,1725426662714,-500.0,0.00028493,2]
[337100554,1725426662726,-500.0,0.00028493,2]
[337100555,1725426662736,-500.0,0.00028493,2]
[337100556,1725426662745,-500.0,0.00028493,2]
[337100557,1725426662756,-500.0,0.00028493,2]
[337100558,1725426662766,-500.0,0.00028493,2]
[337100559,1725426662776,-500.0,0.00028493,2]
[337100560,1725426662786,-500.0,0.00028493,2]
[337100561,1725426662797,-500.0,0.00028493,2]
[337100562,1725426662808,-543.17,0.00028493,2]
[337100563,1725426662819,-6518.68,0.00028493,2]
[337100564,1725426662828,-500.0,0.00028493,2]
[337100565,1725426662838,-1587.43,0.00028493,2]
[337100566,1725426662848,-500.0,0.00028493,2]
[337100567,1725426662858,-881.43,0.00028493,2]
[337100568,1725426662869,-5985.78,0.00028493,2]
[337100569,1725426662878,-506.34,0.00028493,2]
[337100570,1725426662888,-500.0,0.00028493,2]
[337100571,1725426662897,-500.0,0.00028493,2]
[337100572,1725426662908,-1326.71,0.00028493,2]
[337100573,1725426662919,-500.0,0.00028493,2]
[337100574,1725426662929,-500.0,0.00028493,2]
[337100575,1725426662941,-760.48,0.00028493,2]
[337100576,1725426662952,-500.0,0.00028493,2]
[337100577,1725426662963,-500.0,0.00028493,2]
[337100578,1725426662974,-500.0,0.00028493,2]
[337100579,1725426662984,-500.0,0.00028493,2]
[337100580,1725426662994,-500.0,0.00028493,2]
[337100581,1725426663005,-1143.83,0.00028493,2]
[337100582,1725426663017,-2460.73,0.00028493,2]
[337100583,1725426663030,-249.5624225,0.00028493,2]
[337100584,1725426663041,-500.0,0.00028493,2]
[337100585,1725426663051,-500.0,0.00028493,2]
[337100586,1725426663061,-500.0,0.00028493,2]
[337100587,1725426663072,-500.0,0.00028493,2]
[337100588,1725426663083,-500.0,0.00028493,2]
[337100589,1725426663093,-500.0,0.00028493,2]
[337100590,1725426663102,-537.85592579,0.00028493,2]
[337100591,1725426663112,-500.0,0.00028493,2]
[337100592,1725426663122,-500.0,0.00028493,2]
[337100593,1725426663132,-579.23,0.00028493,2]
[337100594,1725426663142,-500.0,0.00028493,2]
[337100595,1725426663151,-500.0,0.00028493,2]
[337100596,1725426663161,-500.0,0.00028493,2]
[337100597,1725426663171,-500.0,0.00028493,2]
[337100598,1725426663181,-500.0,0.00028493,2]
[337100599,1725426663192,-500.0,0.00028493,2]
[337100600,1725426663202,-500.0,0.00028493,2]
[337100601,1725426663211,-500.0,0.00028493,2]
[337100602,1725426663221,-500.0,0.00028493,2]
[337100603,1725426663231,-500.0,0.00028493,2]
[337100604,1725426663241,-623.68914649,0.00028493,2]
[337100605,1725426663251,-500.0,0.00028493,2]
[337100606,1725426663261,-500.0,0.00028493,2]
[337100607,1725426663272,-584.31,0.00028493,2]
[337100608,1725426663283,-500.0,0.00028493,2]
[337100609,1725426663297,-500.0,0.00028493,2]
[337100610,1725426663307,-1986.82,0.00028493,2]
[337100611,1725426663318,-807.59,0.00028493,2]
[337100612,1725426663328,-500.0,0.00028493,2]
[337100613,1725426663340,-500.0,0.00028493,2]
[337100614,1725426663350,-500.0,0.00028493,2]
[337100615,1725426663361,-500.0,0.00028493,2]
[337100616,1725426663372,-500.0,0.00028493,2]
[337100617,1725426663382,-500.0,0.00028493,2]
[337100618,1725426663393,-500.0,0.00028493,2]
[337100619,1725426663404,-1131.76,0.00028493,2]
[337100620,1725426663414,-500.0,0.00028493,2]
[337100621,1725426663424,-559.56438059,0.00028493,2]
[337100622,1725426663434,-500.0,0.00028493,2]
[337100623,1725426663447,-500.0,0.00028493,2]
[337100624,1725426663459,-500.0,0.00028493,2]
[337100625,1725426663470,-382.38217725,0.00028493,2]
[337100626,1725426663481,-500.0,0.00028493,2]
[337100627,1725426663492,-500.0,0.00028493,2]
[337100628,1725426663502,-500.0,0.00028493,2]
[337100629,1725426663514,-500.0,0.00028493,2]
[337100630,1725426663524,-500.0,0.00028493,2]
[337100631,1725426663535,-500.0,0.00028493,2]
[337100632,1725426663545,-500.0,0.00028493,2]
[337100633,1725426663558,-545.18,0.00028493,2]
[337100634,1725426663568,-500.0,0.00028493,2]
[337100635,1725426663579,-500.0,0.00028493,2]
[337100636,1725426663590,-500.0,0.00028493,2]
[337100637,1725426663600,-500.0,0.00028493,2]
[337100638,1725426663609,-500.0,0.00028493,2]
[337100639,1725426663620,-500.0,0.00028493,2]
[337100640,1725426663631,-500.0,0.00028493,2]
[337100641,1725426663644,-500.0,0.00028493,2]
[337100642,1725426663654,-500.0,0.00028493,2]
[337100643,1725426663664,-500.0,0.00028493,2]
[337100644,1725426663674,-500.0,0.00028493,2]
[337100645,1725426663684,-260.0,0.00028493,2]
[337100646,1725426663694,-500.0,0.00028493,2]
[337100647,1725426663704,-500.0,0.00028493,2]
[337100648,1725426663715,-500.0,0.00028493,2]
[337100649,1725426663725,-500.0,0.00028493,2]
[337100650,1725426663735,-500.0,0.00028493,2]
[337100651,1725426663745,-500.0,0.00028493,2]
[337100652,1725426663756,-500.0,0.00028493,2]
[337100653,1725426663766,-500.0,0.00028493,2]
[337100654,1725426663777,-151.0,0.00028493,7]
[337100655,1725426663788,-313.562476,0.00028493,7]
[337100656,1725426663798,-313.562476,0.00028493,7]
[337100657,1725426663812,-919.57,0.00028493,2]
[337100658,1725426663823,-151.0,0.00028493,7]
[337100659,1725426663833,-151.0,0.00028493,7]
[337100660,1725426663843,-151.0,0.00028493,7]
[337100661,1725426663854,-151.0,0.00028493,7]
[337100662,1725426663864,-151.0,0.00028493,7]
[337100663,1725426663875,-151.0,0.00028493,7]
[337100664,1725426663887,-151.0,0.00028493,7]
[337100665,1725426663898,-151.0,0.00028493,7]
[337100666,1725426663908,-151.0,0.00028493,7]
[337100667,1725426663920,-157.74817,0.00028493,7]
[337100668,1725426663930,-151.0,0.00028493,7]
[337100669,1725426663939,-379.244413,0.00028493,7]
[337100670,1725426663952,-379.244413,0.00028493,7]
[337100671,1725426663962,-600.0,0.00028497,23]
[337100672,1725426663973,-420.0,0.00028705,2]
[337100673,1725426663984,-326.33572121,0.00028764,2]
[337100674,1725426663994,-500.0,0.00028767,2]
[337100675,1725426664006,-500.0,0.00028767,2]
[337100676,1725426664017,-500.0,0.00028767,2]
[337100677,1725426664027,-500.0,0.00028767,2]
[337100678,1725426664039,-335.73,0.00028767,2]
[337100679,1725426664049,-500.0,0.00028767,2]
[337100680,1725426664059,-446.26323813,0.00028767,2]
[337100681,1725426664069,-500.0,0.00028767,2]
[337100682,1725426664079,-500.0,0.00028767,2]
[337100683,1725426664088,-500.0,0.00028767,2]
[337100684,1725426664099,-500.0,0.00028767,2]
[337100685,1725426664108,-500.0,0.00028767,2]
[337100686,1725426664118,-500.0,0.00028767,2]
[337100687,1725426664128,-500.0,0.00028767,2]
[337100688,1725426664138,-500.0,0.00028767,2]
[337100689,1725426664148,-500.0,0.00028767,2]
[337100690,1725426664158,-500.0,0.00028767,2]
[337100691,1725426664169,-1302.87,0.00028767,2]
[337100692,1725426664179,-1156.02,0.00028767,2]
[337100693,1725426664189,-760.8,0.00028767,2]
[337100694,1725426664202,-500.0,0.00028767,2]
[337100695,1725426664212,-2082.53,0.00028767,2]
[337100696,1725426664222,-500.0,0.00028767,2]
[337100697,1725426664232,-10473.4,0.00028767,2]
[337100698,1725426664243,-436.4060671,0.00028767,2]
[337100699,1725426664253,-500.0,0.00028767,2]
[337100700,1725426664263,-885.72,0.00028767,2]
[337100701,1725426664355,-500.0,0.00028767,2]
[337100702,1725426664366,-500.0,0.00028767,2]
[337100703,1725426664376,-871.3,0.00028767,2]
[337100704,1725426664387,-2887.27,0.00028767,2]
[337100705,1725426664396,-500.0,0.00028767,2]
[337100706,1725426664405,-1285.92,0.00028767,2]
[337100707,1725426664415,-500.0,0.00028767,2]
[337100708,1725426664424,-985.59,0.00028767,2]
[337100709,1725426664434,-500.0,0.00028767,2]
[337100710,1725426664443,-500.0,0.00028767,2]
[337100711,1725426664453,-4135.59,0.00028767,2]
[337100712,1725426664463,-500.0,0.00028767,2]
[337100713,1725426664473,-500.0,0.00028767,2]
[337100714,1725426664483,-500.0,0.00028767,2]
[337100715,1725426664493,-500.0,0.00028767,2]
[337100716,1725426664503,-500.0,0.00028767,2]
[337100717,1725426664515,-500.0,0.00028767,2]
[337100718,1725426664525,-633.11278393,0.00028767,2]
[337100719,1725426664535,-500.0,0.00028767,2]
[337100720,1725426664546,-500.0,0.00028767,2]
[337100721,1725426664556,-543.17,0.00028767,2]
[337100722,1725426664569,-6518.68,0.00028767,2]
[337100723,1725426664589,-500.0,0.00028767,2]
[337100724,1725426664603,-1587.43,0.00028767,2]
[337100725,1725426664613,-500.0,0.00028767,2]
[337100726,1725426664623,-881.43,0.00028767,2]
[337100727,1725426664633,-5985.78,0.00028767,2]
[337100728,1725426664643,-506.34,0.00028767,2]
[337100729,1725426664653,-439.72381087,0.00028767,2]
[337100730,1725426664663,-500.0,0.00028767,2]
[337100731,1725426664673,-1326.71,0.00028767,2]
[337100732,1725426664683,-500.0,0.00028767,2]
[337100733,1725426664692,-500.0,0.00028767,2]
[337100734,1725426664701,-500.0,0.00028767,2]
[337100735,1725426664711,-760.48,0.00028767,2]
[337100736,1725426664720,-500.0,0.00028767,2]
[337100737,1725426664730,-434.07174651,0.00028767,2]
[337100738,1725426664740,-500.0,0.00028767,2]
[337100739,1725426664749,-1143.83,0.00028767,2]
[337100740,1725426664758,-2460.73,0.00028767,2]
[337100741,1725426664768,-500.0,0.00028767,2]
[337100742,1725426664778,-500.0,0.00028767,2]
[337100743,1725426664787,-500.0,0.00028767,2]
[337100744,1725426664797,-500.0,0.00028767,2]
[337100745,1725426664806,-500.0,0.00028767,2]
[337100746,1725426664815,-563.76,0.00028767,2]
[337100747,1725426664825,-500.0,0.00028767,2]
[337100748,1725426664834,-500.0,0.00028767,2]
[337100749,1725426664843,-500.0,0.00028767,2]
[337100750,1725426664853,-584.31,0.00028767,2]
[337100751,1725426664862,-500.0,0.00028767,2]
[337100752,1725426664872,-1986.82,0.00028767,2]
[337100753,1725426664881,-807.59,0.00028767,2]
[337100754,1725426664891,-1131.76,0.00028767,2]
[337100755,1725426664901,-500.0,0.00028767,2]
[337100756,1725426664911,-500.0,0.00028767,2]
[337100757,1725426664921,-405.84,0.00028767,2]
[337100758,1725426664930,-253.72,0.00028767,2]
[337100759,1725426664940,-500.0,0.00028767,2]
[337100760,1725426664950,-500.0,0.00028767,2]
[337100761,1725426664960,-500.0,0.00028767,2]
[337100762,1725426664970,-919.57,0.00028767,2]
[337100763,1725426664979,-418.16,0.000288,7]
[337100764,1725426664990,-1500.0,0.00028819,5]
[337100765,1725426665000,-292.974,0.00028985,2]
[337100766,1725426665009,-200.0,0.00029,5]
[337100767,1725426665021,-500.0,0.00029041,2]
[337100768,1725426665030,-500.0,0.00029041,2]
[337100769,1725426665039,-500.0,0.00029041,2]
[337100770,1725426665049,-500.0,0.00029041,2]
[337100771,1725426665059,-500.0,0.00029041,2]
[337100772,1725426665068,-500.0,0.00029041,2]
[337100773,1725426665078,-500.0,0.00029041,2]
[337100774,1725426665087,-500.0,0.00029041,2]
[337100775,1725426665097,-500.0,0.00029041,2]
[337100776,1725426665107,-531.45041689,0.00029041,2]
[337100777,1725426665116,-500.0,0.00029041,2]
[337100778,1725426665126,-500.0,0.00029041,2]
[337100779,1725426665136,-249.85057209,0.00029041,2]
[337100780,1725426665145,-500.0,0.00029041,2]
[337100781,1725426665154,-500.0,0.00029041,2]
[337100782,1725426665164,-1302.87,0.00029041,2]
[337100783,1725426665174,-1156.02,0.00029041,2]
[337100784,1725426665183,-760.8,0.00029041,2]
[337100785,1725426665193,-500.0,0.00029041,2]
[337100786,1725426665202,-2082.53,0.00029041,2]
[337100787,1725426665212,-500.0,0.00029041,2]
[337100788,1725426665222,-10473.4,0.00029041,2]
[337100789,1725426665231,-500.0,0.00029041,2]
[337100790,1725426665241,-885.72,0.00029041,2]
[337100791,1725426665251,-227.33982631,0.00029041,2]
[337100792,1725426665260,-500.0,0.00029041,2]
[337100793,1725426665271,-871.3,0.00029041,2]
[337100794,1725426665280,-2887.27,0.00029041,2]
[337100795,1725426665292,-500.0,0.00029041,2]
[337100796,1725426665302,-1285.92,0.00029041,2]
[337100797,1725426665312,-500.0,0.00029041,2]
[337100798,1725426665321,-985.59,0.00029041,2]
[337100799,1725426665331,-500.0,0.00029041,2]
[337100800,1725426665341,-481.89529692,0.00029041,2]
[337100801,1725426665351,-4135.59,0.00029041,2]
[337100802,1725426665361,-500.0,0.00029041,2]
[337100803,1725426665373,-500.0,0.00029041,2]
[337100804,1725426665383,-500.0,0.00029041,2]
[337100805,1725426665393,-500.0,0.00029041,2]
[337100806,1725426665403,-500.0,0.00029041,2]
[337100807,1725426665412,-500.0,0.00029041,2]
[337100808,1725426665422,-500.0,0.00029041,2]
[337100809,1725426665432,-500.0,0.00029041,2]
[337100810,1725426665441,-543.17,0.00029041,2]
[337100811,1725426665451,-6518.68,0.00029041,2]
[337100812,1725426665466,-500.0,0.00029041,2]
[337100813,1725426665475,-1587.43,0.00029041,2]
[337100814,1725426665484,-500.0,0.00029041,2]
[337100815,1725426665494,-881.43,0.00029041,2]
[337100816,1725426665504,-5985.78,0.00029041,2]
[337100817,1725426665515,-506.34,0.00029041,2]
[337100818,1725426665524,-500.0,0.00029041,2]
[337100819,1725426665534,-1326.71,0.00029041,2]
[337100820,1725426665544,-475.28610716,0.00029041,2]
[337100821,1725426665553,-500.0,0.00029041,2]
[337100822,1725426665563,-760.48,0.00029041,2]
[337100823,1725426665573,-500.0,0.00029041,2]
[337100824,1725426665582,-500.0,0.00029041,2]
[337100825,1725426665592,-500.0,0.00029041,2]
[337100826,1725426665601,-1143.83,0.00029041,2]
[337100827,1725426665611,-2460.73,0.00029041,2]
[337100828,1725426665620,-500.0,0.00029041,2]
[337100829,1725426665630,-500.0,0.00029041,2]
[337100830,1725426665640,-258.43,0.00029041,2]
[337100831,1725426665649,-500.0,0.00029041,2]
[337100832,1725426665658,-500.0,0.00029041,2]
[337100833,1725426665668,-500.0,0.00029041,2]
[337100834,1725426665677,-500.0,0.00029041,2]
[337100835,1725426665687,-500.0,0.00029041,2]
[337100836,1725426665696,-584.31,0.00029041,2]
[337100837,1725426665705,-500.0,0.00029041,2]
[337100838,1725426665715,-1986.82,0.00029041,2]
[337100839,1725426665724,-807.59,0.00029041,2]
[337100840,1725426665733,-1131.76,0.00029041,2]
[337100841,1725426665743,-500.0,0.00029041,2]
[337100842,1725426665752,-500.0,0.00029041,2]
[337100843,1725426665762,-500.0,0.00029041,2]
[337100844,1725426665773,-500.0,0.00029041,2]
[337100845,1725426665783,-919.57,0.00029041,2]
[337100846,1725426665792,-523.0,0.00029294,2]
[337100847,1725426665802,-150.0,0.00029294,2]
[337100848,1725426665811,-500.0,0.00029315,2]
[337100849,1725426665821,-500.0,0.00029315,2]
[337100850,1725426665831,-500.0,0.00029315,2]
[337100851,1725426665840,-469.68597742,0.00029315,2]
[337100852,1725426665850,-500.0,0.00029315,2]
[337100853,1725426665859,-500.0,0.00029315,2]
[337100854,1725426665869,-500.0,0.00029315,2]
[337100855,1725426665878,-522.28768345,0.00029315,2]
[337100856,1725426665888,-500.0,0.00029315,2]
[337100857,1725426665898,-500.0,0.00029315,2]
[337100858,1725426665909,-500.0,0.00029315,2]
[337100859,1725426665920,-500.0,0.00029315,2]
[337100860,1725426665929,-500.0,0.00029315,2]
[337100861,1725426665939,-1302.87,0.00029315,2]
[337100862,1725426665948,-1156.02,0.00029315,2]
[337100863,1725426665958,-760.8,0.00029315,2]
[337100864,1725426665967,-500.0,0.00029315,2]
[337100865,1725426665977,-2082.53,0.00029315,2]
[337100866,1725426665986,-500.0,0.00029315,2]
[337100867,1725426665995,-10473.4,0.00029315,2]
[337100868,1725426666004,-500.0,0.00029315,2]
[337100869,1725426666013,-885.72,0.00029315,2]
[337100870,1725426666032,-258.91319949,0.00029315,2]
[337100871,1725426666041,-871.3,0.00029315,2]
[337100872,1725426666051,-2887.27,0.00029315,2]
[337100873,1725426666060,-238.69654978,0.00029315,2]
[337100874,1725426666069,-1285.92,0.00029315,2]
[337100875,1725426666079,-500.0,0.00029315,2]
[337100876,1725426666089,-985.59,0.00029315,2]
[337100877,1725426666100,-462.56985068,0.00029315,2]
[337100878,1725426666109,-4135.59,0.00029315,2]
[337100879,1725426666118,-500.0,0.00029315,2]
[337100880,1725426666127,-500.0,0.00029315,2]
[337100881,1725426666138,-500.0,0.00029315,2]
[337100882,1725426666147,-500.0,0.00029315,2]
[337100883,1725426666236,-500.0,0.00029315,2]
[337100884,1725426666247,-500.0,0.00029315,2]
[337100885,1725426666258,-500.0,0.00029315,2]
[337100886,1725426666268,-196.47,0.00029315,2]
[337100887,1725426666277,-543.17,0.00029315,2]
[337100888,1725426666287,-6518.68,0.00029315,2]
[337100889,1725426666299,-500.0,0.00029315,2]
[337100890,1725426666308,-1587.43,0.00029315,2]
[337100891,1725426666318,-500.0,0.00029315,2]
[337100892,1725426666327,-881.43,0.00029315,2]
[337100893,1725426666338,-5985.78,0.00029315,2]
[337100894,1725426666347,-506.34,0.00029315,2]
[337100895,1725426666357,-500.0,0.00029315,2]
[337100896,1725426666368,-1326.71,0.00029315,2]
[337100897,1725426666377,-500.0,0.00029315,2]
[337100898,1725426666388,-760.48,0.00029315,2]
[337100899,1725426666398,-500.0,0.00029315,2]
[337100900,1725426666408,-500.0,0.00029315,2]
[337100901,1725426666418,-500.0,0.00029315,2]
[337100902,1725426666427,-1143.83,0.00029315,2]
[337100903,1725426666437,-2460.73,0.00029315,2]
[337100904,1725426666446,-500.0,0.00029315,2]
[337100905,1725426666456,-500.0,0.00029315,2]
[337100906,1725426666465,-500.0,0.00029315,2]
[337100907,1725426666475,-500.0,0.00029315,2]
[337100908,1725426666484,-630.56,0.00029315,2]
[337100909,1725426666494,-500.0,0.00029315,2]
[337100910,1725426666504,-500.0,0.00029315,2]
[337100911,1725426666514,-584.31,0.00029315,2]
[337100912,1725426666531,-500.0,0.00029315,2]
[337100913,1725426666543,-1986.82,0.00029315,2]
[337100914,1725426666554,-807.59,0.00029315,2]
[337100915,1725426666565,-1131.76,0.00029315,2]
[337100916,1725426666575,-500.0,0.00029315,2]
[337100917,1725426666586,-500.0,0.00029315,2]
[337100918,1725426666596,-507.19046656,0.00029315,2]
[337100919,1725426666606,-151.0,0.00029315,7]
[337100920,1725426666617,-151.0,0.00029315,2]
[337100921,1725426666628,-500.0,0.00029315,2]
[337100922,1725426666639,-919.57,0.00029315,2]
[337100923,1725426666651,-204.77929,0.00029384,2]
[337100924,1725426666662,-240.18141,0.00029384,2]
[337100925,1725426666672,-240.18141,0.00029384,2]
[337100926,1725426666683,-240.18141,0.00029384,2]
[337100927,1725426666694,-160.120941,0.00029384,2]
[337100928,1725426666703,-160.120941,0.00029384,2]
[337100929,1725426666714,-160.120941,0.00029384,2]
[337100930,1725426666723,-643.97304542,0.00029589,2]
[337100931,1725426666733,-500.0,0.00029589,2]
[337100932,1725426666743,-500.0,0.00029589,2]
[337100933,1725426666752,-500.0,0.00029589,2]
[337100934,1725426666762,-635.26162954,0.00029589,2]
[337100935,1725426666773,-500.0,0.00029589,2]
[337100936,1725426666782,-500.0,0.00029589,2]
[337100937,1725426666792,-500.0,0.00029589,2]
[337100938,1725426666802,-500.0,0.00029589,2]
[337100939,1725426666812,-242.95672427,0.00029589,2]
[337100940,1725426666821,-500.0,0.00029589,2]
[337100941,1725426666832,-1302.87,0.00029589,2]
[337100942,1725426666842,-1156.02,0.00029589,2]
[337100943,1725426666851,-760.8,0.00029589,2]
[337100944,1725426666861,-500.0,0.00029589,2]
[337100945,1725426666871,-2082.53,0.00029589,2]
[337100946,1725426666880,-500.0,0.00029589,2]
[337100947,1725426666889,-10473.4,0.00029589,2]
[337100948,1725426666899,-500.0,0.00029589,2]
[337100949,1725426666908,-885.72,0.00029589,2]
[337100950,1725426666918,-871.3,0.00029589,2]
[337100951,1725426666927,-2887.27,0.00029589,2]
[337100952,1725426666940,-1285.92,0.00029589,2]
[337100953,1725426666949,-396.0060269,0.00029589,2]
[337100954,1725426666960,-985.59,0.00029589,2]
[337100955,1725426666970,-4135.59,0.00029589,2]
[337100956,1725426666979,-175.34268113,0.00029589,2]
[337100957,1725426666989,-500.0,0.00029589,2]
[337100958,1725426666998,-500.0,0.00029589,2]
[337100959,1725426667007,-500.0,0.00029589,2]
[337100960,1725426667017,-500.0,0.00029589,2]
[337100961,1725426667026,-500.0,0.00029589,2]
[337100962,1725426667035,-500.0,0.00029589,2]
[337100963,1725426667045,-543.17,0.00029589,2]
[337100964,1725426667054,-6518.68,0.00029589,2]
[337100965,1725426667063,-500.0,0.00029589,2]
[337100966,1725426667074,-1587.43,0.00029589,2]
[337100967,1725426667084,-424.20624084,0.00029589,2]
[337100968,1725426667093,-881.43,0.00029589,2]
[337100969,1725426667102,-5985.78,0.00029589,2]
[337100970,1725426667111,-506.34,0.00029589,2]
[337100971,1725426667120,-500.0,0.00029589,2]
[337100972,1725426667130,-1326.71,0.00029589,2]
[337100973,1725426667142,-500.0,0.00029589,2]
[337100974,1725426667151,-760.48,0.00029589,2]
[337100975,1725426667160,-500.0,0.00029589,2]
[337100976,1725426667169,-500.0,0.00029589,2]
[337100977,1725426667178,-500.0,0.00029589,2]
[337100978,1725426667187,-1143.83,0.00029589,2]
[337100979,1725426667197,-2460.73,0.00029589,2]
[337100980,1725426667206,-500.0,0.00029589,2]
[337100981,1725426667215,-500.0,0.00029589,2]
[337100982,1725426667224,-235.47,0.00029589,2]
[337100983,1725426667233,-500.0,0.00029589,2]
[337100984,1725426667243,-410.09,0.00029589,2]
[337100985,1725426667253,-411.72,0.00029589,2]
[337100986,1725426667262,-584.31,0.00029589,2]
[337100987,1725426667271,-310.02,0.00029589,2]
[337100988,1725426667281,-1986.82,0.00029589,2]
[337100989,1725426667291,-807.59,0.00029589,2]
[337100990,1725426667305,-1131.76,0.00029589,2]
[337100991,1725426667316,-500.0,0.00029589,2]
[337100992,1725426667327,-500.0,0.00029589,2]
[337100993,1725426667339,-151.0,0.00029589,7]
[337100994,1725426667349,-151.0,0.00029589,7]
[337100995,1725426667360,-151.0,0.00029589,7]